bitfinex-derivatives/quotes_BTCF0:USTF0_20241223
["timestamp","ask_amount","ask_price","bid_price","bid_amount"]
[1734965633478,0.3608,93770.0,93766.0,0.053385]
[1734965633682,0.3608,93770.0,93748.0,0.05351465]
[1734965633683,0.053383,93771.0,93769.0,0.053383]
[1734965633878,0.053386,93766.0,93762.0,0.053387]
[1734965634081,0.053384,93768.0,93762.0,0.053387]
[1734965634296,0.053385,93767.0,93762.0,0.053387]
[1734965634487,0.053386,93766.0,93762.0,0.053387]
[1734965634691,0.001,93764.0,93762.0,0.053387]
[1734965634889,0.002,93764.0,93762.0,0.053387]
[1734965635494,0.053387,93763.0,93762.0,0.001]
[1734965635886,0.001,93767.0,93748.0,0.00011965]
[1734965636080,0.001,93767.0,93766.0,0.053385]
[1734965636288,0.053385,93767.0,93766.0,0.053385]
[1734965636595,0.001,93763.0,93756.0,0.3608]
[1734965636793,0.054387,93763.0,93761.0,0.053388]
[1734965637993,0.053389,93760.0,93751.0,0.016]
[1734965638189,0.002,93767.0,93753.0,0.3608]
[1734965638394,0.002,93767.0,93759.0,0.053389]
[1734965638585,0.053388,93761.0,93759.0,0.053389]
[1734965638786,0.052388,93761.0,93760.0,1.5]
[1734965638988,0.002,93763.0,93756.0,0.053391]
[1734965639182,0.002,93763.0,93748.0,0.00011965]
[1734965639491,0.054387,93763.0,93755.0,0.3608]
[1734965639687,0.001,93767.0,93761.0,0.053387]
[1734965639882,0.001,93767.0,93755.0,0.3608]
[1734965639883,0.002,93767.0,93755.0,0.3608]
[1734965640082,0.002,93767.0,93766.0,0.053385]
[1734965640302,0.055385,93767.0,93766.0,0.053385]
[1734965640697,0.053392,93754.0,93753.0,0.001]
[1734965640995,0.05349729,93754.0,93753.0,0.001]
[1734965641382,0.053395,93749.0,93743.0,0.053398]
[1734965641791,0.053395,93749.0,93745.0,0.053397]
[1734965641993,0.053395,93749.0,93747.0,0.053396]
[1734965642193,0.00110529,93754.0,93741.0,0.25338056]
[1734965642390,0.05449729,93754.0,93752.0,0.053393]
[1734965642586,0.054395,93749.0,93746.0,0.053396]
[1734965642794,0.054395,93749.0,93735.0,1.50108]
[1734965642995,0.054395,93749.0,93731.0,0.25338056]
[1734965643191,0.054395,93749.0,93733.0,0.053404]
[1734965643495,0.054395,93749.0,93731.0,0.25338056]
[1734965644386,0.05448769,93749.0,93731.0,0.25338056]
[1734965644587,0.05448769,93749.0,93727.0,1.5]
[1734965644805,0.05348769,93749.0,93730.0,0.053405]
[1734965644994,0.05348769,93749.0,93727.0,1.5]
[1734965644995,0.054395,93749.0,93727.0,1.5]
[1734965645201,0.3608,93738.0,93726.0,0.25338056]
[1734965645395,0.053407,93728.0,93726.0,0.30678856]
[1734965645591,0.053407,93728.0,93726.0,0.25338056]
[1734965645794,0.414207,93728.0,93726.0,0.25338056]
[1734965645996,0.05341,93723.0,93722.0,0.25338056]
[1734965647204,0.00011045,93727.0,93721.0,0.053411]
[1734965647205,0.05341,93722.0,93721.0,0.053411]
[1734965647399,0.36136001,93724.0,93723.0,0.05341]
[1734965647595,0.3608,93724.0,93723.0,0.05341]
[1734965647802,0.00011045,93727.0,93726.0,0.053408]
[1734965648597,0.3608,93754.0,93726.0,0.3608]
[1734965648797,0.37425455,93754.0,93734.0,0.3608]
[1734965648997,0.053395,93749.0,93748.0,0.053395]
[1734965649196,0.053395,93749.0,93748.0,1.553395]
[1734965649397,0.01409455,93754.0,93748.0,1.5]
[1734965649601,9.837e-05,93753.0,93751.0,0.3608]
[1734965649902,9.837e-05,93753.0,93752.0,0.053393]
[1734965651504,0.00160073,93768.0,93767.0,0.053385]
[1734965651707,0.00160073,93768.0,93752.0,0.3638]
[1734965652002,0.00160073,93768.0,93752.0,0.3688]
[1734965652191,0.053386,93764.0,93761.0,0.053388]
[1734965652595,0.00260073,93768.0,93760.0,0.3608]
[1734965652802,0.00260073,93768.0,93766.0,0.053385]
[1734965653197,0.00260073,93768.0,93755.0,0.25338056]
[1734965653710,0.00260073,93768.0,93766.0,0.053385]
[1734965654104,0.00160073,93768.0,93758.0,0.13120031]
[1734965654297,0.00160073,93768.0,93764.0,0.053386]
[1734965654501,0.00160073,93768.0,93766.0,0.053385]
[1734965654895,0.00460073,93768.0,93767.0,0.3608]
[1734965655105,0.00460073,93768.0,93766.0,0.053385]
[1734965655300,0.053378,93780.0,93776.0,0.053379]
[1734965655496,0.053378,93780.0,93770.0,0.13120031]
[1734965655691,0.053378,93779.0,93777.0,0.053378]
[1734965655893,0.00056001,93785.0,93783.0,0.053375]
[1734965656198,0.10581464,93809.0,93808.0,0.053361]
[1734965656497,0.00159925,93841.0,93825.0,0.053352]
[1734965656803,0.00159925,93841.0,93825.0,0.3608]
[1734965656804,1e-07,93829.0,93825.0,0.3608]
[1734965657300,1e-07,93829.0,93828.0,0.05335]
[1734965658308,1e-07,93829.0,93825.0,0.002]
[1734965658309,0.3608,93837.0,93825.0,0.26138056]
[1734965658503,0.00159925,93841.0,93828.0,0.001]
[1734965658706,0.00159925,93841.0,93839.0,0.3608]
[1734965658913,0.053331,93861.0,93841.0,0.053342]
[1734965659216,0.053331,93861.0,93853.0,0.053336]
[1734965659404,0.053331,93861.0,93850.0,0.49356031]
[1734965659604,0.1446,93875.0,93850.0,0.49200031]
[1734965659796,0.053331,93862.0,93850.0,0.49200031]
[1734965659994,0.053331,93862.0,93851.0,0.053336]
[1734965660193,0.053331,93862.0,93850.0,0.49356031]
[1734965660396,0.053331,93862.0,93850.0,0.49200031]
[1734965660594,0.3608,93868.0,93850.0,0.3608]
[1734965660810,0.414137,93851.0,93850.0,0.002]
[1734965661010,0.053338,93849.0,93826.0,0.25338056]
[1734965661306,0.05335,93827.0,93826.0,0.25338056]
[1734965661507,0.053345,93836.0,93823.0,0.38211222]
[1734965661805,0.3608,93851.0,93823.0,0.38211222]
[1734965661806,0.053343,93841.0,93831.0,0.053348]
[1734965662201,0.053344,93839.0,93831.0,0.053348]
[1734965662406,0.053344,93839.0,93834.0,0.053346]
[1734965662708,0.053331,93862.0,93835.0,0.11524913]
[1734965663006,0.053315,93890.0,93856.0,0.3608]
[1734965663206,0.3608,93893.0,93870.0,0.49200031]
[1734965663406,0.053322,93877.0,93870.0,0.49200031]
[1734965663709,0.05333,93864.0,93847.0,0.3608]
[1734965664006,0.3608,93877.0,93857.0,0.3608]
[1734965664214,0.00159887,93880.0,93873.0,0.053324]
[1734965664505,0.004,93877.0,93873.0,0.053324]
[1734965664712,0.3648,93877.0,93851.0,0.11663961]
[1734965664915,0.053338,93848.0,93847.0,0.002]
[1734965665210,0.053348,93832.0,93818.0,0.00159886]
[1734965665405,0.414148,93832.0,93818.0,0.00159886]
[1734965665611,0.053352,93824.0,93823.0,0.00011209]
[1734965665801,0.414152,93824.0,93823.0,0.00011209]
[1734965666405,0.3608,93824.0,93823.0,0.00011209]
[1734965666604,0.3608,93824.0,93823.0,0.05346509]
[1734965666809,0.3608,93832.0,93823.0,0.00011209]
[1734965667010,0.3608,93832.0,93831.0,0.053348]
[1734965667314,0.3608,93843.0,93823.0,0.00011209]
[1734965667517,0.3608,93843.0,93841.0,0.053342]
[1734965668017,0.3608,93843.0,93831.0,0.322942]
[1734965668213,0.3608,93843.0,93840.0,0.053343]
[1734965668405,0.001,93832.0,93831.0,0.38529]
[1734965668715,0.3608,93843.0,93842.0,0.053342]
[1734965669507,0.3608,93858.0,93831.0,1.6588]
[1734965669715,0.3608,93858.0,93857.0,0.053333]
[1734965669918,0.3608,93875.0,93857.0,0.053333]
[1734965670210,0.3608,93879.0,93854.0,0.20195275]
[1734965670608,0.3608,93879.0,93871.0,0.053325]
[1734965671004,0.3608,93879.0,93854.0,0.20195275]
[1734965671203,0.3608,93879.0,93854.0,0.50195275]
[1734965671419,0.3608,93879.0,93877.0,0.053322]
[1734965671613,0.3608,93887.0,93886.0,0.053317]
[1734965671816,0.3314,93929.0,93886.0,0.053317]
[1734965671817,0.053292,93930.0,93899.0,0.053309]
[1734965672021,0.3608,93933.0,93930.0,0.053292]
[1734965672316,0.3608,93933.0,93920.0,0.56275275]
[1734965672717,0.3608,93933.0,93920.0,0.20195275]
[1734965672919,0.3608,93933.0,93930.0,0.053291]
[1734965673123,0.3608,93933.0,93931.0,0.053291]
[1734965673418,0.053261,93986.0,93920.0,0.56275275]
[1734965673419,0.3608,93958.0,93956.0,0.053277]
[1734965673916,0.3608,93958.0,93951.0,0.05328]
[1734965674122,0.3608,93958.0,93957.0,0.053277]
[1734965674516,0.3608,93958.0,93950.0,0.20195275]
[1734965674724,0.3648,93958.0,93945.0,0.0016]
[1734965674915,0.3608,93949.0,93945.0,0.0016]
[1734965675116,0.053282,93948.0,93935.0,0.053289]
[1734965675922,0.3698,93958.0,93953.0,0.053279]
[1734965676217,0.3698,93958.0,93940.0,0.20195275]
[1734965676422,0.3708,93958.0,93955.0,0.053278]
[1734965676720,0.3708,93958.0,93940.0,0.20195275]
[1734965676721,0.01,93958.0,93957.0,0.053277]
[1734965676917,0.053263,93981.0,93964.0,0.053272]
[1734965677221,0.053263,93981.0,93953.0,0.3608]
[1734965677222,0.053263,93981.0,93970.0,0.20195275]
[1734965677413,0.3608,93979.0,93970.0,0.20195275]
[1734965678009,0.3608,93979.0,93977.0,0.053265]
[1734965678320,0.00159796,93995.0,93971.0,0.49351634]
[1734965678321,0.00159796,93995.0,93990.0,0.053258]
[1734965678717,0.00159796,93995.0,93985.0,0.20195275]
[1734965679017,0.3608,94008.0,93995.0,0.053254]
[1734965679222,0.3608,94008.0,93998.0,0.20195275]
[1734965679615,0.3608,94012.0,93998.0,0.20195275]
[1734965680114,0.3608,94002.0,93998.0,0.20195275]
[1734965680318,0.053256,93994.0,93981.0,0.3608]
[1734965680541,0.3608,94002.0,93970.0,0.20195275]
[1734965680542,0.005,93979.0,93970.0,0.001]
[1734965680821,0.414069,93971.0,93970.0,0.001]
[1734965681015,0.3608,93971.0,93970.0,0.001]
[1734965681424,0.3608,93971.0,93966.0,0.053271]
[1734965681610,0.053272,93966.0,93949.0,0.053281]
[1734965681809,0.3608,93958.0,93946.0,1.5]
[1734965682027,0.3608,93958.0,93957.0,0.053277]
[1734965682214,0.3608,93958.0,93948.0,0.053282]
[1734965682418,0.053279,93953.0,93946.0,0.00108]
[1734965682615,0.053279,93953.0,93937.0,0.00011597]
[1734965682812,0.36136001,93958.0,93946.0,0.053282]
[1734965683016,0.3608,93958.0,93940.0,0.20195275]
[1734965683220,0.3608,93958.0,93956.0,0.053277]
[1734965683527,0.35976712,93958.0,93951.0,0.00259659]
[1734965683820,0.35976712,93958.0,93956.0,0.053277]
[1734965684418,0.35976712,93958.0,93956.0,0.066277]
[1734965684617,0.35976712,93958.0,93957.0,0.1216882]
[1734965684929,0.00012493,93970.0,93957.0,0.4216882]
[1734965685221,0.00012493,93970.0,93969.0,0.05327]
[1734965686120,0.00012493,93970.0,93961.0,0.053274]
[1734965686312,0.3608,93962.0,93961.0,0.053274]
[1734965686723,0.3608,93962.0,93951.0,0.00159659]
[1734965686926,0.3608,93952.0,93951.0,0.00159659]
[1734965687327,0.36136001,93962.0,93961.0,0.053274]
[1734965687530,0.001,93962.0,93961.0,0.053274]
[1734965687729,0.053244,94015.0,93961.0,0.053274]
[1734965687730,0.3608,94006.0,93961.0,0.77629008]
[1734965688028,0.3608,93988.0,93987.0,0.05326]
[1734965688622,0.3608,93998.0,93993.0,0.053256]
[1734965688822,0.3608,93998.0,93994.0,1.5]
[1734965689018,0.36136001,94006.0,93994.0,1.5]
[1734965689019,0.3608,93996.0,93994.0,1.5]
[1734965689336,0.053255,93995.0,93994.0,1.5]
[1734965689525,0.36136001,93996.0,93970.0,0.20195275]
[1734965689719,0.3608,93988.0,93987.0,0.05326]
[1734965690119,0.3608,93988.0,93971.0,1.5]
[1734965690326,0.3608,93975.0,93974.0,0.053267]
[1734965690520,0.3608,93975.0,93971.0,1.50132]
[1734965690724,0.3608,93975.0,93954.0,0.01307088]
[1734965690725,0.053269,93971.0,93970.0,0.004]
[1734965691226,0.36136001,93975.0,93970.0,0.013]
[1734965691428,0.3608,93972.0,93971.0,0.053269]
[1734965691726,0.001,93996.0,93971.0,0.053269]
[1734965691727,0.05323,94039.0,94026.0,0.053237]
[1734965691929,0.414017,94062.0,94030.0,0.3608]
[1734965691930,0.053235,94031.0,94030.0,0.3608]
[1734965692131,0.3608,94041.0,94007.0,0.3608]
[1734965692331,0.053241,94019.0,94018.0,0.3608]
[1734965692527,0.3608,94019.0,93999.0,0.3608]
[1734965692725,0.053261,93986.0,93974.0,0.01383305]
[1734965692925,0.414061,93986.0,93974.0,0.01083305]
[1734965693127,0.3608,93986.0,93969.0,0.3608]
[1734965693336,0.053253,93999.0,93991.0,0.053257]
[1734965693637,0.3608,94002.0,93991.0,0.053257]
[1734965693936,0.053259,93989.0,93983.0,0.053262]
[1734965694233,0.3608,93992.0,93981.0,0.053262]
[1734965694435,0.05326,93987.0,93981.0,0.053262]
[1734965694637,0.053245,94014.0,93991.0,0.053257]
[1734965694833,0.053253,93998.0,93982.0,0.48299879]
[1734965695134,0.3608,94007.0,93982.0,0.3608]
[1734965695328,0.053256,93994.0,93982.0,0.053262]
[1734965695534,0.053256,93994.0,93969.0,0.3608]
[1734965695828,0.053257,93992.0,93991.0,0.003]
[1734965696235,0.053258,93990.0,93982.0,0.013]
[1734965696434,0.3608,93988.0,93982.0,0.013]
[1734965696735,0.053262,93983.0,93982.0,0.013]
[1734965696928,0.05326,93987.0,93982.0,0.053262]
[1734965697132,0.05326,93987.0,93983.0,0.053262]
[1734965697432,0.05326,93987.0,93969.0,0.009]
[1734965697433,0.002,93992.0,93978.0,0.3608]
[1734965697636,0.002,93992.0,93988.0,0.053259]
[1734965697844,0.3608,94024.0,93991.0,0.7216]
[1734965698042,0.3608,94015.0,93993.0,0.053256]
[1734965698332,0.053247,94010.0,93991.0,0.3608]
[1734965698641,0.3608,94005.0,94002.0,0.053251]
[1734965698839,0.3608,94005.0,94003.0,0.05325]
[1734965699231,0.3608,94005.0,93997.0,0.053254]
[1734965699435,0.053251,94002.0,93997.0,0.053254]
[1734965700235,0.053251,94002.0,93998.0,0.053253]
[1734965700425,0.3608,94004.0,93976.0,0.2530155]
[1734965700631,0.053258,93990.0,93976.0,0.2530155]
[1734965700833,0.053259,93989.0,93982.0,0.053262]
[1734965701131,0.3608,93984.0,93976.0,0.2530155]
[1734965701437,0.053269,93970.0,93969.0,0.00148]
[1734965701627,0.3608,93970.0,93944.0,0.43882831]
[1734965701827,0.414083,93945.0,93944.0,0.43882831]
[1734965702436,0.714083,93945.0,93944.0,0.25524431]
[1734965702638,0.053287,93939.0,93938.0,0.06346254]
[1734965702943,0.053289,93935.0,93934.0,0.00056]
[1734965703140,0.053295,93925.0,93924.0,8.1e-07]
[1734965703442,0.053295,93925.0,93875.0,0.86738457]
[1734965703443,0.053321,93879.0,93875.0,0.50718457]
[1734965703639,0.3608,93897.0,93885.0,0.053317]
[1734965703838,0.3608,93897.0,93875.0,0.50658457]
[1734965703839,0.00013239,93896.0,93883.0,0.3608]
[1734965704039,0.00013239,93896.0,93894.0,0.053312]
[1734965705236,0.053314,93892.0,93881.0,0.053319]
[1734965705437,0.00013239,93896.0,93863.0,0.3608]
[1734965705643,0.053316,93888.0,93863.0,0.3608]
[1734965705942,0.3608,93876.0,93863.0,0.3608]
[1734965706139,0.3608,93868.0,93853.0,0.3608]
[1734965706340,0.053332,93861.0,93853.0,0.3608]
[1734965706539,0.053332,93861.0,93848.0,0.3384]
[1734965706941,0.3608,93857.0,93848.0,0.3384]
[1734965707137,0.41424757,93857.0,93848.0,0.1696]
[1734965707643,0.41424757,93857.0,93835.0,0.3608]
[1734965707644,0.053343,93841.0,93835.0,0.3608]
[1734965707846,0.00011457,93857.0,93856.0,0.053334]
[1734965708037,0.414117,93886.0,93854.0,0.3608]
[1734965708342,0.414117,93886.0,93863.0,0.3608]
[1734965708646,0.3608,93886.0,93874.0,0.053323]
[1734965708945,0.053319,93884.0,93877.0,0.053322]
[1734965709333,0.3608,93886.0,93875.0,1.5]
[1734965709546,0.3608,93886.0,93877.0,0.053322]
[1734965709939,0.3608,93886.0,93875.0,1.5006]
[1734965710243,0.3608,93896.0,93885.0,0.053317]
[1734965710438,0.05332,93882.0,93877.0,0.002]
[1734965710638,0.053321,93879.0,93877.0,0.002]
[1734965710833,0.3608,93878.0,93877.0,0.002]
[1734965711454,0.36144,93888.0,93877.0,0.002]
[1734965711644,0.00064,93888.0,93875.0,1.50056]
[1734965711834,0.053314,93891.0,93875.0,1.5]
[1734965712041,0.002,93886.0,93875.0,1.5]
[1734965712750,0.053323,93876.0,93875.0,1.5]
[1734965712950,0.053323,93876.0,93875.0,1.503]
[1734965713345,0.053322,93878.0,93875.0,0.002]
[1734965713651,0.053322,93877.0,93875.0,0.002]
[1734965714159,0.3608,93876.0,93875.0,0.002]
[1734965714540,0.00056001,93880.0,93878.0,0.053321]
[1734965714746,0.41467801,93884.0,93878.0,0.05089923]
[1734965714946,0.053323,93876.0,93875.0,0.001]
[1734965715144,0.414123,93876.0,93875.0,0.001]
[1734965715446,0.414123,93876.0,93831.0,0.36091752]
[1734965715447,0.6608,93876.0,93831.0,0.36091752]
[1734965715751,0.053348,93832.0,93831.0,0.00011752]
[1734965716347,0.3,93832.0,93801.0,0.3391]
[1734965716546,0.414165,93803.0,93801.0,0.1721]
[1734965716942,0.36140001,93814.0,93809.0,0.05336]
[1734965717251,9.49e-05,93813.0,93808.0,0.053361]
[1734965717950,9.49e-05,93813.0,93801.0,0.225465]
[1734965718161,9.49e-05,93813.0,93811.0,0.053359]
[1734965719444,0.3608,93824.0,93811.0,0.006]
[1734965719653,0.36136001,93839.0,93837.0,0.053344]
[1734965719844,0.053341,93844.0,93838.0,0.3608]
[1734965720053,0.3608,93856.0,93830.0,0.3608]
[1734965720054,0.3608,93848.0,93830.0,0.3608]
[1734965720350,0.053344,93839.0,93821.0,0.3608]
[1734965720549,4.502e-05,93838.0,93837.0,0.053345]
[1734965720751,4.502e-05,93838.0,93821.0,0.3608]
[1734965721250,4.502e-05,93838.0,93822.0,1.5]
[1734965721550,0.053331,93861.0,93850.0,0.053337]
[1734965721749,0.3608,93866.0,93850.0,0.053337]
[1734965721950,0.3608,93866.0,93858.0,0.053332]
[1734965722158,0.002,93848.0,93845.0,0.3608]
[1734965722344,0.414129,93866.0,93855.0,0.053334]
[1734965722541,0.3608,93866.0,93847.0,1.5]
[1734965722743,0.053332,93861.0,93850.0,0.001]
[1734965722949,0.053332,93861.0,93853.0,0.053335]
[1734965723147,0.3608,93866.0,93847.0,1.5]
[1734965723455,0.3608,93866.0,93855.0,0.3608]
[1734965723753,0.3608,93866.0,93850.0,0.20195275]
[1734965723945,0.3608,93866.0,93847.0,1.5]
[1734965724148,0.05334,93846.0,93845.0,0.001]
[1734965724951,0.053351,93827.0,93819.0,0.053355]
[1734965725146,0.053354,93821.0,93819.0,0.053355]
[1734965725548,0.36140001,93828.0,93813.0,0.00159895]
[1734965725745,0.053358,93814.0,93813.0,0.00159895]
[1734965726155,0.053362,93806.0,93805.0,0.1714]
[1734965726361,0.053365,93801.0,93800.0,0.1]
[1734965726750,0.3608,93806.0,93805.0,0.053363]
[1734965726946,0.3608,93815.0,93800.0,0.1]
[1734965727176,0.053349,93830.0,93825.0,0.053351]
[1734965727348,0.3608,93834.0,93810.0,0.20195275]
[1734965727549,0.053351,93826.0,93810.0,0.20195275]
[1734965727746,0.3608,93823.0,93819.0,0.057355]
[1734965727959,0.414153,93823.0,93819.0,0.004]
[1734965728159,0.3608,93823.0,93819.0,0.004]
[1734965728354,0.053354,93821.0,93813.0,0.053358]
[1734965728546,0.3608,93834.0,93810.0,0.20195275]
[1734965728750,0.053352,93825.0,93810.0,0.20195275]
[1734965728952,0.053352,93825.0,93819.0,0.002]
[1734965729161,0.053352,93825.0,93821.0,0.053353]
[1734965729459,0.3608,93849.0,93824.0,0.3608]
[1734965729654,0.053346,93836.0,93832.0,0.053347]
[1734965729853,0.053346,93836.0,93831.0,0.053348]
[1734965730166,0.053341,93843.0,93825.0,0.1655]
[1734965730358,0.3608,93849.0,93830.0,0.20195275]
[1734965730559,0.3608,93849.0,93840.0,0.053343]
[1734965730753,0.053334,93855.0,93849.0,0.053338]
[1734965731064,0.053337,93851.0,93841.0,0.3608]
[1734965731260,0.053337,93851.0,93845.0,0.05334]
[1734965731464,0.053337,93851.0,93841.0,0.3608]
[1734965731756,0.3608,93859.0,93857.0,0.053333]
[1734965731962,0.36144,93867.0,93853.0,0.3608]
[1734965732162,0.12183315,93872.0,93861.0,0.3608]
[1734965732356,0.12183315,93872.0,93870.0,0.053326]
[1734965732754,0.36136001,93878.0,93872.0,0.053325]
[1734965732950,0.12183315,93884.0,93869.0,0.3608]
[1734965733169,0.12183315,93884.0,93882.0,0.053319]
[1734965733348,0.12183315,93884.0,93877.0,0.3608]
[1734965733550,0.12183315,93884.0,93862.0,0.1686]
[1734965733753,0.053328,93867.0,93863.0,1.5]
[1734965733959,0.3608,93877.0,93856.0,0.3608]
[1734965734165,0.3608,93860.0,93854.0,0.1673]
[1734965734359,0.3608,93860.0,93845.0,0.3608]
[1734965734360,0.053335,93854.0,93845.0,0.3608]
[1734965735059,0.36136001,93860.0,93844.0,0.36093596]
[1734965735364,0.053339,93848.0,93844.0,0.00013596]
[1734965735562,0.05334,93845.0,93844.0,0.00013596]
[1734965735767,0.00056001,93851.0,93844.0,0.00013596]
[1734965736066,0.053338,93848.0,93844.0,0.00013596]
[1734965736263,0.05334,93846.0,93844.0,0.00013596]
[1734965737358,0.3618,93854.0,93844.0,0.00013596]
[1734965737563,0.3608,93854.0,93844.0,0.00013596]
[1734965737862,0.05334,93846.0,93844.0,0.00513596]
[1734965738165,0.3608,93845.0,93806.0,0.1918691]
[1734965738358,0.053358,93814.0,93806.0,0.1918691]
[1734965738658,0.053358,93814.0,93806.0,0.2452311]
[1734965739060,0.0534377,93814.0,93806.0,0.2452311]
[1734965739463,0.053359,93813.0,93806.0,0.00159895]
[1734965740262,7.97e-05,93814.0,93808.0,0.053361]
[1734965740567,7.97e-05,93814.0,93812.0,0.053359]
[1734965740753,7.97e-05,93814.0,93813.0,0.001]
[1734965741566,7.97e-05,93814.0,93808.0,0.002]
[1734965741761,0.3608,93832.0,93808.0,0.002]
[1734965741961,0.05335,93829.0,93815.0,0.053357]
[1734965742162,0.05335,93829.0,93808.0,0.002]
[1734965742163,0.05335,93829.0,93816.0,0.053356]
[1734965742464,0.053352,93825.0,93816.0,0.053356]
[1734965742666,0.053357,93815.0,93813.0,0.003]
[1734965742968,0.3608,93814.0,93813.0,0.003]
[1734965744075,0.053357,93815.0,93813.0,0.001]
[1734965744375,0.36140001,93822.0,93815.0,0.002]
[1734965744568,0.053357,93816.0,93815.0,0.002]
[1734965745266,0.36144,93822.0,93806.0,0.00159895]
[1734965745468,0.053362,93808.0,93806.0,0.00159895]
[1734965747372,0.053362,93808.0,93806.0,0.00459895]
[1734965747673,0.053362,93808.0,93806.0,9.5e-07]
[1734965747878,0.053377,93786.0,93785.0,0.00013835]
[1734965748175,0.414177,93786.0,93785.0,0.00013835]
[1734965748367,0.41423326,93786.0,93785.0,0.00013835]
[1734965749079,0.41623326,93786.0,93785.0,0.00013835]
[1734965750265,0.41923326,93786.0,93785.0,0.00013835]
[1734965750469,0.41723326,93786.0,93785.0,0.00013835]
[1734965750670,0.42723326,93786.0,93785.0,0.00113835]
[1734965750870,0.13488941,93786.0,93785.0,1.50097113]
[1734965751269,0.12988941,93786.0,93785.0,1.50097113]
[1734965751463,0.13288941,93786.0,93785.0,1.50097113]
[1734965751971,0.01105626,93786.0,93785.0,1.49959457]
[1734965752561,0.00805626,93786.0,93785.0,1.49959457]
[1734965752761,0.01105626,93786.0,93785.0,1.49959457]
[1734965753166,0.01105626,93786.0,93770.0,0.3608]
[1734965753372,0.3608,93781.0,93765.0,0.01061981]
[1734965753578,0.053382,93772.0,93770.0,0.053383]
[1734965753775,0.00305626,93786.0,93765.0,1.5]
[1734965753979,0.00305626,93786.0,93785.0,0.416174]
[1734965754375,0.12183315,93801.0,93785.0,0.3628]
[1734965754673,0.053369,93795.0,93793.0,1.5]
[1734965755080,0.053373,93787.0,93785.0,0.001]
[1734965755375,8.202e-05,93786.0,93785.0,0.001]
[1734965755971,8.202e-05,93786.0,93772.0,0.3608]
[1734965756172,0.00988681,93779.0,93775.0,0.05338]
[1734965756371,0.00988681,93779.0,93777.0,0.053378]
[1734965757174,8.202e-05,93786.0,93777.0,0.053378]
[1734965757175,0.00988681,93778.0,93777.0,0.053378]
[1734965758078,0.00988681,93778.0,93777.0,0.059378]
[1734965758473,0.00988681,93778.0,93777.0,0.053378]
[1734965758669,8.202e-05,93786.0,93785.0,0.053374]
[1734965759479,0.3608,93812.0,93785.0,0.053374]
[1734965759673,0.36140001,93812.0,93797.0,0.053367]
[1734965759872,0.36140001,93812.0,93783.0,0.3608]
[1734965760099,0.36140001,93812.0,93783.0,0.37123612]
[1734965760273,0.053365,93801.0,93783.0,0.37123612]
[1734965760596,5.633e-05,93800.0,93799.0,0.053366]
[1734965761379,5.633e-05,93800.0,93798.0,0.053367]
[1734965761571,5.633e-05,93800.0,93788.0,0.3608]
[1734965761779,0.053375,93785.0,93783.0,0.01043612]
[1734965762089,0.3608,93796.0,93780.0,0.00159944]
[1734965762273,0.053376,93782.0,93780.0,0.00159944]
[1734965762686,0.3608,93796.0,93780.0,0.00159944]
[1734965762879,0.00705633,93800.0,93799.0,0.053366]
[1734965763080,0.053367,93799.0,93783.0,0.414175]
[1734965763384,0.00705633,93800.0,93785.0,0.3608]
[1734965763782,0.00060001,93804.0,93798.0,0.053366]
[1734965763981,0.12239316,93816.0,93815.0,0.053357]
[1734965764291,0.18288912,93830.0,93815.0,0.053357]
[1734965764292,0.18288912,93830.0,93815.0,0.774957]
[1734965764489,0.00159927,93842.0,93829.0,0.3608]
[1734965764788,0.3608,93889.0,93852.0,0.053336]
[1734965764994,0.053321,93880.0,93874.0,0.3608]
[1734965765284,0.053319,93883.0,93876.0,0.053322]
[1734965765481,0.05387501,93889.0,93882.0,0.053319]
[1734965765684,0.00056001,93889.0,93874.0,0.3608]
[1734965765886,0.00056001,93889.0,93876.0,0.053322]
[1734965766087,0.21303377,93892.0,93874.0,0.3608]
[1734965766282,0.57383377,93892.0,93874.0,0.3608]
[1734965766486,0.001,93875.0,93874.0,0.3608]
[1734965767377,0.001,93875.0,93874.0,0.3618]
[1734965767579,0.001,93875.0,93874.0,0.001]
[1734965767786,0.053324,93874.0,93866.0,0.3608]
[1734965768293,0.053324,93874.0,93866.0,0.414128]
[1734965768692,0.009,93875.0,93866.0,0.3608]
[1734965768889,0.1,93900.0,93874.0,0.3608]
[1734965769087,0.3608,93957.0,93934.0,0.053289]
[1734965769288,0.053283,93947.0,93937.0,0.053288]
[1734965769584,0.3608,93957.0,93931.0,0.3608]
[1734965769789,0.053282,93948.0,93934.0,0.053289]
[1734965769988,0.3608,93946.0,93934.0,0.053289]
[1734965770193,0.009,93957.0,93945.0,0.3608]
[1734965770393,0.009,93957.0,93956.0,0.3608]
[1734965770686,0.053266,93977.0,93956.0,0.3608]
[1734965770883,0.00060001,93979.0,93965.0,0.3608]
[1734965771087,0.053268,93972.0,93965.0,0.3608]
[1734965771285,0.00159729,93982.0,93975.0,0.053266]
[1734965771495,0.00159729,93982.0,93966.0,0.3608]
[1734965771688,0.414069,93971.0,93958.0,0.414076]
[1734965771890,0.053275,93960.0,93958.0,0.3608]
[1734965772192,0.053277,93956.0,93945.0,0.3608]
[1734965772394,0.053279,93953.0,93945.0,0.3608]
[1734965772587,0.05328,93951.0,93945.0,0.3608]
[1734965772780,0.3608,93946.0,93942.0,0.0015967]
[1734965772985,0.053285,93943.0,93942.0,0.0015967]
[1734965773396,0.05329,93933.0,93931.0,0.016]
[1734965773596,0.05329,93933.0,93928.0,0.3608]
[1734965773597,0.053292,93930.0,93928.0,0.3608]
[1734965774694,0.002,93943.0,93928.0,0.3608]
[1734965774900,0.002,93943.0,93930.0,0.053292]
[1734965775310,0.002,93943.0,93928.0,0.3608]